Cogmind - Beta 13 @@@ ROGUE MODE // 2024.07.14 @ 20:25:25 Player: Venar246 Result: Destroyed by C-17 Slicer with Blade Saw Performance ------------- Evolutions (2) 1000 Regions Visited (7) 1400 Robots Destroyed (40) 200 Value Destroyed (1317) 1317 Prototype IDs (23) 460 Alien Tech Used (0) 0 Bonus (300) 300 TOTAL SCORE: 4677 Bonus ------- Aligned with FarCom 300 Cogmind --------- Core Integrity 0/550 Matter 260/300 Energy 1515/1600 System Corruption 0% Temperature Cool (0) Movement Core (1450) Ox28 Location -8/Materials Parts ------- > --- POWER (1) -------- (None) > --- PROPULSION (5) --- (None) > --- UTILITY (3) ------ Huge Storage Unit Superbattery > --- WEAPON (2) ------- Blade Saw > --- INVENTORY (25) --- Light Ion Engine Nuclear Core Small Storage Unit High-capacity Matter Pod (200) Weight Redist. System Advanced Visual Processing Unit Improved Terrain Scanner Terrain Scan Processor Light Armor Plating Hacking Suite Medium Laser Medium Laser Ion Cannon Improved Datajack Blade Saw Peak State ------------ > --- POWER ------------ Improved Ion Engine > --- PROPULSION ------- Carbon-fiber Leg Improved Carbon-fiber Leg Improved Carbon-fiber Leg Improved Carbon-fiber Leg Improved Carbon-fiber Leg > --- UTILITY ---------- Huge Storage Unit Improved Terrain Scanner Terrain Scan Processor > --- WEAPON ----------- Ion Cannon Katana > --- INVENTORY -------- Ion Engine Light Ion Engine Nuclear Core Titanium Leg Titanium Leg Titanium Leg Improved Hover Unit Improved Hover Unit Small Storage Unit Superbattery High-capacity Matter Pod Weight Redist. System Advanced Visual Processing Unit Improved Terrain Scanner Improved Terrain Scanner Terrain Scan Processor Light Armor Plating Hacking Suite Medium Laser Medium Laser Ion Cannon Improved Datajack Blade Saw Blade Saw [Rating: 39] Favorites ----------- Power Improved Ion Engine Engine Improved Ion Engine Propulsion Titanium Leg Treads Light Treads Leg Titanium Leg Hover Unit Improved Hover Unit Utility Huge Storage Unit Device Improved Terrain Scanner Storage Huge Storage Unit Processor Terrain Scan Processor Weapon Ion Cannon Energy Gun Medium Laser Energy Cannon Ion Cannon Ballistic Gun High-powered Shotgun Slashing Weapon Katana Build | -11 -10 -10 -9 -9 -9 -8 -8 ------- Run | Yrd Mat Min Mat Min Exi Min Mat Slots Evolved 4 | . . . 2 . . . 2 Power . | . . . . . . . . Propulsion 3 | . . . 2 . . . 1 Utility 1 | . . . . . . . 1 Weapon . | . . . . . . . . Parts Attached 48 | 8 3 . 13 . . . 24 Power 5 | 1 . . 3 . . . 1 Engine 5 | 1 . . 3 . . . 1 Core . | . . . . . . . . Reactor . | . . . . . . . . Propulsion 28 | 4 2 . 7 . . . 15 Treads 4 | 2 2 . . . . . . Leg 20 | 2 . . 7 . . . 11 Wheel . | . . . . . . . . Hover 4 | . . . . . . . 4 Flight . | . . . . . . . . Utility 6 | 1 1 . 1 . . . 3 Device 2 | . . . 1 . . . 1 Storage 3 | 1 1 . . . . . 1 Processor 1 | . . . . . . . 1 Hackware . | . . . . . . . . Protection . | . . . . . . . . Artifact . | . . . . . . . . Weapon 9 | 2 . . 2 . . . 5 Energy Gun 2 | 2 . . . . . . . Energy Cannon 4 | . . . 2 . . . 2 Ballistic Gun 1 | . . . . . . . 1 Ballistic Cannon . | . . . . . . . . Launcher . | . . . . . . . . Special Weapon . | . . . . . . . . Impact Weapon . | . . . . . . . . Slashing Weapon 2 | . . . . . . . 2 Piercing Weapon . | . . . . . . . . Special Melee Weapon . | . . . . . . . . Unidentified Prototypes . | . . . . . . . . Parts Lost 20 | . . . 1 . . . 19 Power 3 | . . . 1 . . . 2 Propulsion 11 | . . . . . . . 11 Utility 2 | . . . . . . . 2 Weapon 4 | . . . . . . . 4 Highest Loss Streak 8 | . . . 1 . . . 8 To Critical Strikes . | . . . . . . . . Average Slot Usage (%) 92 | . 85 85 97 100 100 100 89 Engine 10 | . 14 14 10 11 11 11 8 Treads 6 | . 27 28 . . . . . Leg 31 | . . . 43 44 44 44 37 Device 7 | . . . 9 11 11 11 9 Storage 11 | . 14 14 11 11 11 11 9 Processor 2 | . . . . . . . 8 Energy Gun 7 | . 28 28 3 . . . . Energy Cannon 12 | . . . 18 22 22 22 9 Slashing Weapon 1 | . . . . . . . 6 Naked Turns . | . . . . . . . . Heaviest Build 100 | 12 87 87 100 100 100 100 100 Greatest Support 87 | 40 40 40 68 68 68 68 87 Greatest Overweight (x) 29 | . 2 2 2 1 1 1 29 Average Overweight (x) 1 | . 1 2 1 1 1 1 1 Largest Inventory Capacity 25 | 8 25 25 25 25 25 25 25 Average Capacity 24 | 6 24 25 25 25 25 25 25 Most Carried 25 | 4 8 8 24 24 25 25 25 Average Carried 17 | 2 6 8 16 24 24 24 22 Final Capacity 25 | 8 25 25 25 25 25 25 25 Final Carried 25 | 4 8 8 24 24 25 25 15 Class Distribution -------------------- 62% | Mutant 19% | Assassin 17% | Skirmisher Dominant Class ---------------- Mutant | -10/Materials Mutant | -10/Mines Mutant | -9/Materials Mutant | -9/Mines Mutant | -9/Exiles Skirmisher | -8/Mines Assassin | -8/Materials Resources | -11 -10 -10 -9 -9 -9 -8 -8 ----------- Run | Yrd Mat Min Mat Min Exi Min Mat Matter Collected 813 | 269 37 135 172 . . . 200 Remotely . | . . . . . . . . Salvage Created 1570 | . 262 142 563 . . . 603 Parts 73 | . 6 8 37 . . . 22 Haulers Intercepted . | . . . . . . . . Recyclers Shooed 3 | . . . 1 . . . 2 Parts Field Recycled . | . . . . . . . . Retrieved Matter . | . . . . . . . . Parts Self-Destructed . | . . . . . . . . Prevented . | . . . . . . . . Kills | -11 -10 -10 -9 -9 -9 -8 -8 ------- Run | Yrd Mat Min Mat Min Exi Min Mat Combat Hostiles Destroyed 35 | . 4 5 11 . . . 15 Melee 3 | . . . . . . . 3 Guns 11 | . 3 5 . . . . 3 Cannons 18 | . . . 11 . . . 7 Classes Destroyed 10 | . 2 1 4 . . . 3 Worker 1 | . . . 1 . . . . Recycler 1 | . 1 . . . . . . Mechanic 1 | . . . 1 . . . . Operator 1 | . . . 1 . . . . Watcher 1 | . . . . . . . 1 Swarmer 7 | . . 3 . . . . 4 Grunt 21 | . 4 2 8 . . . 7 Duelist 2 | . . . . . . . 2 Sentry 4 | . . . 3 . . . 1 Hunter 1 | . . . . . . . 1 Best Kill Streak 10 | . 3 3 5 . . . 10 Combat Bots Only 10 | . 2 3 3 . . . 10 Max Kills in Single Turn 2 | . 1 1 2 . . . 1 Gunslinging . | . . . . . . . . Exploded . | . . . . . . . . Melee 1 | . . . . . . . 1 Uniques/NPCs Destroyed . | . . . . . . . . Combat | -11 -10 -10 -9 -9 -9 -8 -8 -------- Run | Yrd Mat Min Mat Min Exi Min Mat Hostile Shots Fired 224 | . 20 15 44 . . . 145 Missed 50 | . 5 2 10 . . . 33 Damage Taken 2918 | . 165 156 462 . . . 2135 Core 749 | . 38 51 97 . . . 563 Absorbed by Shields . | . . . . . . . . Core Remaining (%) 79 | 100 . 64 . . . 75 . Volleys Fired 79 | . 12 11 26 . . . 30 Largest 2 | . 2 2 2 . . . 2 Hottest 120 | . 100 100 120 . . . 120 Shots Fired 156 | . 24 22 52 . . . 58 Gun 62 | . 24 22 . . . . 16 Cannon 94 | . . . 52 . . . 42 Launcher . | . . . . . . . . Special . | . . . . . . . . Kinetic 16 | . . . . . . . 16 Thermal 140 | . 24 22 52 . . . 42 Explosive . | . . . . . . . . Electromagnetic . | . . . . . . . . Robot Hit Streak 12 | . 12 5 6 . . . 11 Robot Miss Streak 3 | . 3 3 2 . . . 3 Penetration Max . | . . . . . . . . Secondary Targets . | . . . . . . . . Shots Hit Robots 114 | . 17 14 32 . . . 51 Core Hits 54 | . 7 8 15 . . . 24 Critical Kills 2 | . . . . . . . 2 Critical Parts Destroyed . | . . . . . . . . Critical Strikes 8 | . 3 2 . . . . 3 Burn 5 | . 3 2 . . . . . Meltdown 2 | . . . . . . . 2 Sever 1 | . . . . . . . 1 Melee Attacks 32 | . . . . . . . 32 Impact . | . . . . . . . . Slashing 32 | . . . . . . . 32 Piercing . | . . . . . . . . Sneak Attacks 1 | . . . . . . . 1 Combat Hostiles . | . . . . . . . . Follow-up Attacks . | . . . . . . . . Damage Inflicted 2626 | 12 232 210 884 3 . 2 1283 Guns 669 | . 214 210 . . . . 245 Cannons 1431 | . . . 836 . . . 595 Explosions . | . . . . . . . . Melee 417 | . . . . . . . 417 Ramming 109 | 12 18 . 48 3 . 2 26 Kinetic 245 | . . . . . . . 245 Thermal 1855 | . 214 210 836 . . . 595 Explosive . | . . . . . . . . Electromagnetic . | . . . . . . . . Impact . | . . . . . . . . Slashing 417 | . . . . . . . 417 Piercing . | . . . . . . . . Highest Corruption . | . . . . . . . . Average Corruption . | . . . . . . . . Corruption Purged . | . . . . . . . . Corruption Blocked . | . . . . . . . . Overload Shots . | . . . . . . . . Overflow Damage 39 | . . . 39 . . . . Projectiles 39 | . . . 39 . . . . Explosions . | . . . . . . . . Melee . | . . . . . . . . Knockbacks 1 | . . . . . . . 1 Impact 1 | . . . . . . . 1 Kinetic . | . . . . . . . . Secondary . | . . . . . . . . Self-Inflicted Damage . | . . . . . . . . Shots . | . . . . . . . . Rammed 4 | . 4 . . . . . . Targets Rammed 14 | 1 5 . 3 1 . 1 3 Kicked 9 | 1 . . 3 1 . 1 3 Crushed 1 | . 1 . . . . . . Highest Temperature 384 | . 273 357 222 . . . 384 Average Temperature 126 | . 119 150 78 . . . 172 Received Heat Transfer 639 | . 72 63 207 . . . 297 Effects 4 | . 2 1 . . . . 1 Energy Bleed 1 | . . . . . . . 1 Interference 2 | . 2 . . . . . . Damage (minor) 1 | . . 1 . . . . . Siege Activations . | . . . . . . . . Robots Corrupted . | . . . . . . . . Combat Hostiles . | . . . . . . . . Parts Fried . | . . . . . . . . Impact Corruptions . | . . . . . . . . Robots Melted 3 | . 1 . . . . . 2 Combat Hostiles 3 | . 1 . . . . . 2 Parts Melted 15 | . 5 2 4 . . . 4 Heat Transferred 3922 | . 851 777 1332 . . . 962 Parts Sabotaged . | . . . . . . . . Parts Stolen . | . . . . . . . . Parts Stripped . | . . . . . . . . Power Chain Reactions . | . . . . . . . . Alert | -11 -10 -10 -9 -9 -9 -8 -8 ------- Run | Yrd Mat Min Mat Min Exi Min Mat Peak Influence 261 | . 110 131 240 58 . . 261 Initial 58 | . . 11 50 58 . . . Average 68 | . 34 103 102 58 . . 79 Maximum Alert Level 1 | . . . 1 . . . 1 Low Security (%) 92 | 100 100 100 92 100 . 100 84 Level 1 7 | . . . 7 . . . 15 Level 2 . | . . . . . . . . Level 3 . | . . . . . . . . Level 4 . | . . . . . . . . Level 5 . | . . . . . . . . High Security . | . . . . . . . . Max Security . | . . . . . . . . Squads Dispatched 5 | . 1 . 2 . . . 2 Investigation . | . . . . . . . . Extermination . | . . . . . . . . Reinforcement 5 | . 1 . 2 . . . 2 Assault . | . . . . . . . . Garrison . | . . . . . . . . Intercept . | . . . . . . . . Searches Triggered . | . . . . . . . . Construction Impeded . | . . . . . . . . Haulers Reinforced . | . . . . . . . . Active Scanning Responses . | . . . . . . . . Cargo Convoy Interrupts . | . . . . . . . . Stealth | -11 -10 -10 -9 -9 -9 -8 -8 --------- Run | Yrd Mat Min Mat Min Exi Min Mat Distress Signals 11 | . 2 . 6 . . . 3 Communications Jammed . | . . . . . . . . Distress Signals . | . . . . . . . . Times Spotted 75 | . 15 4 23 . . . 33 Peak Tracking Total 11 | . 5 2 5 . . . 11 Tactical Retreats 3 | . 1 . . . . . 2 Traps | -11 -10 -10 -9 -9 -9 -8 -8 ------- Run | Yrd Mat Min Mat Min Exi Min Mat Traps Triggered . | . . . . . . . . Indirectly . | . . . . . . . . Trap Hack Attempts . | . . . . . . . . Triggered . | . . . . . . . . Disarmed . | . . . . . . . . Reprogrammed . | . . . . . . . . Reused . | . . . . . . . . Traps Extracted . | . . . . . . . . Installed . | . . . . . . . . Triggered . | . . . . . . . . Machines | -11 -10 -10 -9 -9 -9 -8 -8 ---------- Run | Yrd Mat Min Mat Min Exi Min Mat Machines Disabled . | . . . . . . . . Max in Single Turn . | . . . . . . . . Machines Repaired . | . . . . . . . . Machines Dismantled . | . . . . . . . . Machines Sabotaged . | . . . . . . . . Overloaded Fab Kills . | . . . . . . . . Hacking | -11 -10 -10 -9 -9 -9 -8 -8 --------- Run | Yrd Mat Min Mat Min Exi Min Mat Machines Accessed 3 | . . . 1 . 1 . 1 Terminals . | . . . . . . . . Fabricators . | . . . . . . . . Repair Stations . | . . . . . . . . Recycling Units . | . . . . . . . . Scanalyzers 2 | . . . 1 . . . 1 Garrison Access . | . . . . . . . . Total Hacks 9 | . . . 3 . 1 . 5 Successful 9 | . . . 3 . 1 . 5 Failed . | . . . . . . . . Catastrophic . | . . . . . . . . Database Lockouts . | . . . . . . . . Manual 1 | . . . . . 1 . . Terminals . | . . . . . . . . Fabricators . | . . . . . . . . Repair Stations . | . . . . . . . . Recycling Units . | . . . . . . . . Scanalyzers 8 | . . . 3 . . . 5 Garrison Access . | . . . . . . . . Terminal Hacks 1 | . . . . . 1 . . Derelict Proto ID Bank 1 | . . . . . 1 . . Fabricator Hacks . | . . . . . . . . Repair Station Hacks . | . . . . . . . . Recycling Unit Hacks . | . . . . . . . . Scanalyzer 8 | . . . 3 . . . 5 Insert Component 5 | . . . 2 . . . 3 Analyze 3 | . . . 1 . . . 2 Garrison Access Hacks . | . . . . . . . . Unauthorized Hacks . | . . . . . . . . Terminals . | . . . . . . . . Fabricators . | . . . . . . . . Repair Stations . | . . . . . . . . Recycling Units . | . . . . . . . . Scanalyzers . | . . . . . . . . Garrison Access . | . . . . . . . . Data Cores Recovered . | . . . . . . . . Used . | . . . . . . . . Hacking Detections 2 | . . . 1 . . . 1 Full Trace Events . | . . . . . . . . Feedback Events . | . . . . . . . . Feedback Blocked . | . . . . . . . . Robot Schematics Acquired . | . . . . . . . . Robots Built . | . . . . . . . . Authchips . | . . . . . . . . Time . | . . . . . . . . Total Robot Build Rating . | . . . . . . . . Part Schematics Acquired 1 | . . . . . . . 1 Parts Built . | . . . . . . . . Authchips . | . . . . . . . . Time . | . . . . . . . . Total Part Build Rating . | . . . . . . . . Parts Repaired . | . . . . . . . . Time . | . . . . . . . . Parts Recycled . | . . . . . . . . Recycled Matter . | . . . . . . . . Retrieved Matter . | . . . . . . . . Retrieved Components . | . . . . . . . . Parts Scanalyzed 2 | . . . 1 . . . 1 Part Schematics Acquired 1 | . . . . . . . 1 Parts Damaged . | . . . . . . . . Bothacking | -11 -10 -10 -9 -9 -9 -8 -8 ------------ Run | Yrd Mat Min Mat Min Exi Min Mat Used RIF Installer . | . . . . . . . . Robots Hacked . | . . . . . . . . Non-combat . | . . . . . . . . Combat . | . . . . . . . . Robot Hacks Applied . | . . . . . . . . Relay Couplers Released . | . . . . . . . . Fabnet Peak Effective % . | . . . . . . . . Robots Rewired . | . . . . . . . . Allies Hacked . | . . . . . . . . Hacks Repelled . | . . . . . . . . Allies | -11 -10 -10 -9 -9 -9 -8 -8 -------- Run | Yrd Mat Min Mat Min Exi Min Mat Total Allies . | . . . . . . . . Largest Group . | . . . . . . . . Highest-Rated Group . | . . . . . . . . Highest-Rated Ally . | . . . . . . . . Total Orders . | . . . . . . . . Ally Attacks . | . . . . . . . . Total Damage . | . . . . . . . . Kills . | . . . . . . . . Allies Corrupted . | . . . . . . . . Allies Melted . | . . . . . . . . Intel | -11 -10 -10 -9 -9 -9 -8 -8 ------- Run | Yrd Mat Min Mat Min Exi Min Mat Robot Analysis Total . | . . . . . . . . Derelict Logs Recovered . | . . . . . . . . Drone Launches . | . . . . . . . . Drone Recoveries . | . . . . . . . . Exploration | -11 -10 -10 -9 -9 -9 -8 -8 ------------- Run | Yrd Mat Min Mat Min Exi Min Mat Turns Passed 4528 | 88 790 232 1027 177 495 353 1366 Spaces Moved 1759 | 56 230 63 399 64 248 174 525 Core 15 | 11 . . . . . . 4 Treads 309 | 28 218 63 . . . . . Legs 1435 | 17 12 . 399 64 248 174 521 Wheels . | . . . . . . . . Hover . | . . . . . . . . Flight . | . . . . . . . . Fastest Speed 50 | 50 120 320 192 200 200 200 190 Average Speed 218 | 126 309 320 205 200 200 200 204 Slowest Speed 1500 | 160 320 320 260 200 200 200 1500 Overloaded Moves . | . . . . . . . . Propulsion Burnouts . | . . . . . . . . Robots Hopped . | . . . . . . . . Cave-ins Triggered . | . . . . . . . . Exploration Rate (%) 28 | 4 39 17 40 10 43 40 34 Regions Visited 7 Branch Regions 4 Pre-discovered Areas . | . . . . . . . . Known Exits Taken . | . . . . . . . . Unknown Exits Taken 7 | 1 1 1 1 1 1 1 . Scrap Searched 1 | . . 1 . . . . . Spaces Dug 8 | . . . . . . . 8 Terrain Destroyed 20 | . . . 8 . . . 12 Melee 8 | . . . . . . . 8 Projectile 12 | . . . 8 . . . 4 AOE . | . . . . . . . . Terrain Rammed . | . . . . . . . . Walls Destroyed . | . . . . . . . . Machines Disabled . | . . . . . . . . Actions | -11 -10 -10 -9 -9 -9 -8 -8 --------- Run | Yrd Mat Min Mat Min Exi Min Mat Total 2212 | 69 274 73 550 113 248 180 705 Wait 236 | . 21 . 90 49 . . 76 Move 1752 | 55 229 62 398 63 247 173 525 Hop . | . . . . . . . . Pick Up 37 | 5 3 . 18 . 1 3 7 Fast Attach 11 | 5 1 . 2 . . . 3 Attach 19 | 1 . . 4 . . . 14 Detach 1 | . 1 . . . . . . Swap 18 | 2 2 . 7 . . . 7 Drop 13 | . . . 2 . . 3 8 Fire 79 | . 12 11 26 . . . 30 Melee 32 | . . . . . . . 32 Ram . | . . . . . . . . Kick 9 | 1 . . 3 1 . 1 3 Crush 5 | . 5 . . . . . . Escape Stasis . | . . . . . . . . Rewire . | . . . . . . . . Trap . | . . . . . . . . Miscellaneous . | . . . . . . . . Route ------- -11/Scrapyard -10/Materials (discovered 2 exits: [*Min x2]) -10/Mines -9/Materials (discovered 2 exits: *Mat / [*Min]) -9/Mines -9/Exiles -8/Mines -8/Materials History --------- Turn | Location | Event 18 | -11/Scrapyard | Discovered new exit (range 15) 89 | -11/Scrapyard | Entered Materials 318 | -10/Materials | Build established: Mutant 327 | -10/Materials | Discovered new exit (range 16) 834 | -10/Materials | Discovered new exit (range 8) 879 | -10/Materials | Entered Mines 928 | -10/Mines | Met a Derelict bent on vengeance 1076 | -10/Mines | Discovered new exit (range 13) 1111 | -10/Mines | Entered Materials 1111 | -9/Materials | Evolved 2 slots: Propulsion x2 1488 | -9/Materials | Discovered new exit (range 5) 2082 | -9/Materials | Discovered new exit (range 15) 2138 | -9/Materials | Entered Mines 2139 | -9/Mines | Assembled infested the area 2307 | -9/Mines | Deemed a non-threat by the Exiles lab entrance 2307 | -9/Mines | Discovered new exit (range 5) 2315 | -9/Mines | Entered Exiles 2341 | -9/Exiles | Discovered new exit (range 15) 2369 | -9/Exiles | Met 8R-AWN 2399 | -9/Exiles | Met EX-HEX 2463 | -9/Exiles | Met EX-BIN 2493 | -9/Exiles | Aligned with FarCom system 2495 | -9/Exiles | Given EX-Vault access code 2551 | -9/Exiles | Opened EX-Vault 2579 | -9/Exiles | Found Superbattery 2626 | -9/Exiles | Warned to stay clear of 0b10 Research branches 2810 | -9/Exiles | Left Exiles lab with Superbattery 2810 | -9/Exiles | Entered Mines 3030 | -8/Mines | Discovered new exit (range 16) 3118 | -8/Mines | Build established: Skirmisher 3163 | -8/Mines | Entered Materials 3163 | -8/Materials | Evolved 2 slots: Propulsion x1, Utility x1 3342 | -8/Materials | Destroyed 10 combat bots 3915 | -8/Materials | Build established: Assassin 4303 | -8/Materials | Core integrity fell below 50% 4442 | -8/Materials | Lost 8 parts (7n1u) 4501 | -8/Materials | Core integrity fell below 20% 4529 | -8/Materials | Destroyed by C-17 Slicer with Blade Saw Last Messages --------------- G-47 Trooper Aluminum Leg severed. G-47 Trooper destroyed. K-01 Serf collects debris. R-06 Scavenger collects Aluminum Leg. K-01 Serf collects debris. R-06 Scavenger collects Lgt. Nuclear Core. Sneak attack on R-06 Scavenger. K-01 Serf collects debris. Acquired 5 matter. ALERT: Suspicious intruders detected, dispatching Cutter reinforcements to area. W-25 Informer sends out distress signal. Slug penetrates Wall. Katana destroyed. Ion Engine destroyed. U-05 Engineer builds a Wall. Imp. Hover Unit severed. U-05 Engineer builds a Wall. Imp. Terrain Scanner destroyed. Imp. Hover Unit destroyed. Map ----- +----------------------------------------------------+ | | | | | | | | | ???????????????????????????#??????# | | ????????????????????????? ????????? | | ????????????????????????????##????? | | ?????????????????"?#????? ######??? | | ?????????????????"?#? ???+ #??? | | ??????????????????????? # #?#? | | ??????????????????## ??# #??? | | ????????????????##??###+?## ###? | | ??????????????Y? ? ? # ##?# | | ?????????????? ???? # #### | | ?????????????? #?### #### #??? | | ??????????????#####?# ?### #### | | ???????????####???### #### ###? | | ?????????? ??###?#### #### ###? | | ??????????##??#?#?### #### #??# | | ????????????######## ### #+#### | | ??????????? % # # | | ????????? ? # # | | ?????????#??#?###+## ###H # # | | ?????? ?#?? ??? ?#######; %# % # | | ?????????? ? ?? # ccc% + # | | ?????????# ? ??# T @#= #%% # | | ?????#??#???"???""?# % # # # | | ???????#?? ??? """ # ! %# # # | | ???????????""? "?? # # # # | | ?????? ??? ? ? # # ###### | | ??????????? ?? ######## #?##?# | | ??????? ?#?###?##### =! ## ###### | | ??????????####?##?## !! # #?### | | ?????? ?????#??#?#?# !! + ##### | | ?????? ????####?#### # T ####? | | ?????????##?####?### # ##### | | ###????????#?####### ##w ###### | | ?? ??#????####??# """ ## !##? | | #??#?????# ? ??## """ ## !## | | ##?#?##?## ?""??# """ ## !#? | | ####??##?# """??# ## !#? | | # ? ??# "?" ## ## !#? | | # ???# ? ## ## !##? | | + ? # ?"" ######### ####?# | | # ? "?"?# """ #?####### #?###? | | # """ # """ ? T ? # ###### | | ^^# ? """ # # ?? ? # ###### | | # ?"" # """ #"""? ?# #?#### | | # ? """?#""" + #####? | | # ? # """ #""" # ###?## | +----------------------------------------------------+ Best States ------------- Heat Dissipation 31 Energy Generation 12 Energy Capacity 265 Matter Stores 300 Matter Capacity 300 Sight Range 16 Terrain Scan Range 16 Terrain Scan Density 85 Evasion (%) 55 Recoil Reduction 2 Item Schematics ----------------- Hacking Suite | -8/Materials | Scanalyzed Robot Schematics ------------------ None Fabricated ------------ Nothing Alien Tech Used ----------------- None Achievements -------------- None Challenges ------------ None Game ------ Seed BattleGuidedDoomcannon Manual? 0 Play Time 00:25:58 Cumulative 15.8 hours Start 2024.07.14 @ 19:33:49 End 2024.07.14 @ 20:25:25 Sessions 1 Manual Loads 0 Difficulty Rogue Special Mode None Game No. 30 Rogue 30 Adventurer 0 Explorer 0 Win Type - Total 0 Types 0/0/0/0/0/0/0/0/0 Lore% 23 Gallery% 26 Achievement% 20 Wizard Run 0 Options --------- Layout 1 ASCII 0 Keyboard 0 Movement Arrows Keybinds 0 Fullscreen 1 Font 32/SmallcapsGlow Map View 50x35 Zoom Use 0% Tactical HUD 0 Map Filters NONE Filters NONE Steam 1 RUN: 850d36e2-548e-457b-9738-1600912e6beb